Cogmind - Beta 17.1 @@@ ROGUE MODE // 2026.09.21 @ 17:39:27 Player: Kiri Result: Destroyed by Y-45 Defender with Heavy Assault Rifle Performance ------------- Evolutions (1) 500 Regions Visited (4) 800 Robots Destroyed (25) 125 Value Destroyed (770) 770 Prototype IDs (2) 40 Alien Tech Used (0) 0 Bonus (0) 0 TOTAL SCORE: 2235 Bonus ------- None Cogmind --------- Core Integrity 0/400 Matter 295/300 Energy 95/100 System Corruption 3% Temperature Warm (123) Movement Core (100) Ox1 Location -9/Storage Parts ------- > --- POWER (1) -------- (None) > --- PROPULSION (2) --- (None) > --- UTILITY (3) ------ Advanced Visual Processing Unit Signal Interpreter Light Armor Plating > --- WEAPON (3) ------- Flail (fused) > --- INVENTORY (5) ---- EM Pulse Cannon EM Pulse Cannon EM Pulse Cannon Rocket Launcher Peak State ------------ > --- POWER ------------ Cooled Ion Engine > --- PROPULSION ------- Aluminum Leg Aluminum Leg > --- UTILITY ---------- Small Storage Unit Bomb Drone Bay > --- WEAPON ----------- Flail Flail Flail > --- INVENTORY -------- Cooled Ion Engine Light Deuterium Engine Advanced Visual Processing Unit EM Pulse Cannon EM Pulse Cannon EM Pulse Cannon Grenade Launcher Rocket Launcher [Rating: 28] Favorites ----------- Power Cooled Ion Engine Engine Cooled Ion Engine Propulsion Aluminum Leg Leg Aluminum Leg Utility Bomb Drone Bay Device Bomb Drone Bay Storage Medium Storage Unit Processor Advanced Visual Processing Unit Protection Propulsion Shielding Weapon Flail Energy Gun Small Laser Launcher Grenade Launcher Impact Weapon Flail Build | -11 -10 -10 -9 -9 ------- Run | Yrd Mat Min Mat Sto Slots Evolved 2 | . . . 2 . Power . | . . . . . Propulsion . | . . . . . Utility 1 | . . . 1 . Weapon 1 | . . . 1 . Parts Attached 19 | 6 4 1 2 6 Power 2 | 1 . 1 . . Engine 2 | 1 . 1 . . Core . | . . . . . Reactor . | . . . . . Propulsion 4 | 2 . . . 2 Treads . | . . . . . Leg 4 | 2 . . . 2 Wheel . | . . . . . Hover . | . . . . . Flight . | . . . . . Utility 7 | 1 1 . 1 4 Device 1 | . . . 1 . Storage 2 | 1 . . . 1 Processor 2 | . . . . 2 Hackware . | . . . . . Protection 2 | . 1 . . 1 Artifact . | . . . . . Weapon 6 | 2 3 . 1 . Energy Gun 2 | 2 . . . . Energy Cannon . | . . . . . Ballistic Gun . | . . . . . Ballistic Cannon . | . . . . . Launcher 1 | . 1 . . . Special Weapon . | . . . . . Impact Weapon 3 | . 2 . 1 . Slashing Weapon . | . . . . . Piercing Weapon . | . . . . . Special Melee Weapon . | . . . . . Unidentified Prototypes 2 | . . 1 1 . Parts Lost 10 | . 1 . . 9 Power 2 | . 1 . . 1 Propulsion 4 | . . . . 4 Utility 2 | . . . . 2 Weapon 2 | . . . . 2 Highest Loss Streak 6 | . 1 . . 6 To Critical Strikes 1 | . . . . 1 Average Backups 8 | 3 6 7 6 9 Power 1 | . 1 1 1 . Propulsion . | 1 1 2 1 . Utility 2 | . . . . 3 Weapon 4 | . 3 4 3 4 Tool/Special . | . . . . . Unused Backups 12 | . 2 . 3 7 Power 3 | . 1 . 1 1 Propulsion 2 | . . . 2 . Utility 2 | . . . . 2 Weapon 5 | . 1 . . 4 Tool/Special . | . . . . . Average Slot Usage (%) 85 | . 92 100 78 84 Engine 11 | . 14 14 11 10 Leg 21 | . 28 28 17 20 Device 7 | . . . 10 9 Storage 11 | . 14 14 11 10 Protection 2 | . 7 14 . . Launcher 1 | . 7 . . . Impact Weapon 28 | . 14 28 28 31 Peak Build Rating 28 | 6 10 13 28 28 Average Rating 21 | 4 8 12 25 26 On Entrance 11 | . 6 9 13 28 Avg Prop Armor Cover (%) . | . . . . . Naked Turns . | . . . . . Heaviest Build 32 | 13 16 18 27 32 Greatest Support 20 | 20 20 20 20 20 Greatest Overweight (x) 7 | . . . 2 7 Average Overweight (x) . | . . . 1 1 Largest Inventory Capacity 10 | 8 8 8 8 10 Average Capacity 8 | 7 8 8 8 9 Most Carried 10 | 5 8 8 8 10 Average Carried 8 | 3 7 7 6 9 Final Capacity 8 | 8 8 8 8 5 Final Carried 8 | 4 8 8 8 4 Class Distribution -------------------- 100% | Mutant Dominant Class ---------------- Mutant | -10/Materials Mutant | -10/Mines Mutant | -9/Materials Mutant | -9/Storage Resources | -11 -10 -10 -9 -9 ----------- Run | Yrd Mat Min Mat Sto Matter Collected 406 | 225 75 . 48 58 Remotely . | . . . . . Salvage Created 920 | . 94 . 48 778 Parts 38 | . 2 . 2 34 Haulers Intercepted . | . . . . . Recyclers Shooed . | . . . . . Parts Field Recycled . | . . . . . Retrieved Matter . | . . . . . Parts Self-Destructed . | . . . . . Prevented . | . . . . . Parts Restored . | . . . . . Kills | -11 -10 -10 -9 -9 ------- Run | Yrd Mat Min Mat Sto Combat Hostiles Destroyed 22 | . 3 . 1 18 Melee 14 | . 1 . 1 12 Classes Destroyed 6 | . 2 . 1 3 Recycler 1 | . . . . 1 Watcher 2 | . . . . 2 Swarmer 4 | . 1 . . 3 Grunt 12 | . 2 . . 10 Brawler 1 | . . . . 1 Sentry 5 | . . . 1 4 Best Kill Streak 3 | . 2 . 1 3 Combat Bots Only 3 | . 2 . 1 3 Max Kills in Single Turn 1 | . 1 . 1 1 Gunslinging . | . . . . . Exploded . | . . . . . Melee 1 | . 1 . 1 1 Uniques/NPCs Destroyed . | . . . . . Combat | -11 -10 -10 -9 -9 -------- Run | Yrd Mat Min Mat Sto Hostile Shots Fired 232 | . 66 . 4 162 Missed 64 | . 23 . 2 39 Hits 168 | . 43 . 2 123 Melee 5 | . . . . 5 Projectile 163 | . 43 . 2 118 Critical Strikes 3 | . . . . 3 Damage Taken 1979 | . 400 . 29 1550 Core 454 | . 50 . . 404 Absorbed by Shields . | . . . . . Redirected to Shielding 36 | . 36 . . . Regen/Repaired (Parts) 132 | . . . 132 . Core Remaining (%) 90 | 100 . 80 . . Volleys Fired . | . . . . . Largest . | . . . . . Hottest . | . . . . . Shots Fired . | . . . . . Gun . | . . . . . Cannon . | . . . . . Launcher . | . . . . . Special . | . . . . . Kinetic . | . . . . . Thermal . | . . . . . Explosive . | . . . . . Electromagnetic . | . . . . . Robot Hit Streak . | . . . . . Robot Miss Streak . | . . . . . Penetration Max . | . . . . . Secondary Targets . | . . . . . Shots Hit Robots 51 | . 4 . 1 46 Core Hits 15 | . 1 . 1 13 Critical Kills 4 | . . . . 4 Critical Parts Destroyed 5 | . . . . 5 Critical Strikes 9 | . . . . 9 Smash 9 | . . . . 9 Melee Attacks 95 | . 14 . 1 80 Impact 95 | . 14 . 1 80 Slashing . | . . . . . Piercing . | . . . . . Sneak Attacks 3 | . . . . 3 Combat Hostiles 2 | . . . . 2 Follow-up Attacks 17 | . 2 . . 15 Damage Inflicted 1918 | . 131 . 35 1752 Guns . | . . . . . Cannons . | . . . . . Explosions . | . . . . . Melee 1918 | . 131 . 35 1752 Ramming . | . . . . . Kinetic . | . . . . . Thermal . | . . . . . Explosive . | . . . . . Electromagnetic . | . . . . . Impact 1918 | . 131 . 35 1752 Slashing . | . . . . . Piercing . | . . . . . Highest Corruption 3 | . 2 2 . 3 Average Corruption 1 | . 2 2 . 1 Corruption Purged . | . . . . . Corruption Blocked . | . . . . . Effects 7 | . . 1 . 6 Message Errors 1 | . . 1 . . Matter Fused 1 | . . . . 1 Heat Flow Errors 2 | . . . . 2 Parts Fused 1 | . . . . 1 Data Loss (major) 2 | . . . . 2 Overload Shots . | . . . . . Overflow Damage 338 | . 8 . . 330 Projectiles . | . . . . . Explosions . | . . . . . Melee 338 | . 8 . . 330 Knockbacks 6 | . 1 . . 5 Impact 6 | . 1 . . 5 Kinetic . | . . . . . Secondary . | . . . . . Self-Inflicted Damage . | . . . . . Shots . | . . . . . Rammed . | . . . . . Targets Rammed . | . . . . . Kicked . | . . . . . Crushed . | . . . . . Highest Temperature 239 | . . . . 239 Average Temperature 115 | . . . . 115 Received Heat Transfer 687 | . 102 . 18 567 Siege Activations . | . . . . . Martial Activations . | . . . . . Shielding Activations . | . . . . . Robots Disrupted . | . . . . . Combat Hostiles . | . . . . . Robots Corrupted 9 | . 2 . . 7 Combat Hostiles 8 | . 2 . . 6 Parts Fried 11 | . 3 . . 8 Impact Corruptions 18 | . 3 . . 15 Robots Melted . | . . . . . Combat Hostiles . | . . . . . Parts Melted . | . . . . . Heat Transferred . | . . . . . Parts Sabotaged . | . . . . . Parts Stolen . | . . . . . Parts Stripped . | . . . . . Power Chain Reactions . | . . . . . Alert | -11 -10 -10 -9 -9 ------- Run | Yrd Mat Min Mat Sto Maximum Alert Level . | . . . . . Low Security (%) 100 | 100 100 100 100 100 Level 1 . | . . . . . Level 2 . | . . . . . Level 3 . | . . . . . Level 4 . | . . . . . Level 5 . | . . . . . High Security . | . . . . . Max Security . | . . . . . Peak Influence 186 | . 80 23 30 186 Initial 23 | . . 23 . 8 Average 21 | . 16 5 . 32 Influence Increases 669 | . 130 . 30 509 Destroy 0b10 Robot/C 440 | . 60 . 20 360 Destroy 0b10 Robot/NC 15 | . . . . 15 Destroy Leader 124 | . 10 . 10 104 Disable Machine 15 | . . . . 15 Lose Combat Pursuer 75 | . 60 . . 15 Influence Decreases 493 | . 70 60 10 353 Entered New Map 49 | . . 37 . 12 Time Decay 344 | . 60 23 10 251 Lost Part 100 | . 10 . . 90 Squads Dispatched 6 | . 2 . . 4 Investigation 4 | . 1 . . 3 Extermination . | . . . . . Reinforcement 1 | . 1 . . . Assault . | . . . . . Garrison 1 | . . . . 1 Intercept . | . . . . . Searches Triggered . | . . . . . Construction Impeded . | . . . . . Haulers Reinforced . | . . . . . Active Scanning Responses . | . . . . . Cargo Convoy Interrupts . | . . . . . Stealth | -11 -10 -10 -9 -9 --------- Run | Yrd Mat Min Mat Sto Distress Signals 2 | . 2 . . . Communications Jammed . | . . . . . Distress Signals . | . . . . . Times Spotted 33 | . 9 . 1 23 Peak Tracking Total 7 | . 5 . 1 7 Tactical Retreats 2 | . 1 . . 1 Traps | -11 -10 -10 -9 -9 ------- Run | Yrd Mat Min Mat Sto Traps Triggered 3 | . 1 . . 2 Indirectly . | . . . . . Trap Hack Attempts . | . . . . . Triggered . | . . . . . Disarmed . | . . . . . Reprogrammed . | . . . . . Reused . | . . . . . Traps Extracted . | . . . . . Installed . | . . . . . Triggered . | . . . . . Machines | -11 -10 -10 -9 -9 ---------- Run | Yrd Mat Min Mat Sto Machines Disabled 1 | . . . . 1 Max in Single Turn 1 | . . . . 1 Machines Repaired . | . . . . . Machines Dismantled . | . . . . . Machines Sabotaged . | . . . . . Overloaded Fab Kills . | . . . . . Hacking | -11 -10 -10 -9 -9 --------- Run | Yrd Mat Min Mat Sto Machines Accessed 6 | . 1 1 1 3 Terminals 4 | . 1 . . 3 Fabricators . | . . . . . Repair Stations 1 | . . . 1 . Recycling Units . | . . . . . Scanalyzers . | . . . . . Garrison Access . | . . . . . Total Hacks 24 | . 4 1 7 12 Successful 10 | . . 1 6 3 Failed 14 | . 4 . 1 9 Catastrophic 1 | . . . . 1 Database Lockouts . | . . . . . Manual . | . . . . . Terminals 16 | . 4 . . 12 Fabricators . | . . . . . Repair Stations 7 | . . . 7 . Recycling Units . | . . . . . Scanalyzers . | . . . . . Garrison Access . | . . . . . Terminal Hacks 4 | . . 1 . 3 Open Door 2 | . . 1 . 1 Alert Level 2 | . . . . 2 Fabricator Hacks . | . . . . . Repair Station Hacks 6 | . . . 6 . Scan Component 3 | . . . 3 . Repair 3 | . . . 3 . Recycling Unit Hacks . | . . . . . Scanalyzer . | . . . . . Garrison Access Hacks . | . . . . . Unauthorized Hacks . | . . . . . Terminals . | . . . . . Fabricators . | . . . . . Repair Stations . | . . . . . Recycling Units . | . . . . . Scanalyzers . | . . . . . Garrison Access . | . . . . . Data Cores Recovered . | . . . . . Used . | . . . . . Hacking Detections 4 | . 1 . 1 2 Full Trace Events 4 | . 1 . 1 2 Feedback Events . | . . . . . Feedback Blocked . | . . . . . Robot Schematics Acquired . | . . . . . Robots Built . | . . . . . Authchips . | . . . . . Time . | . . . . . Total Robot Build Rating . | . . . . . Part Schematics Acquired . | . . . . . Parts Built . | . . . . . Authchips . | . . . . . Time . | . . . . . Total Part Build Rating . | . . . . . Part Studies Acquired . | . . . . . Parts Repaired 3 | . . . 3 . Time 78 | . . . 78 . Parts Recycled . | . . . . . Recycled Matter . | . . . . . Retrieved Matter . | . . . . . Retrieved Components . | . . . . . Parts Scanalyzed . | . . . . . Part Schematics Acquired . | . . . . . Parts Damaged . | . . . . . Bothacking | -11 -10 -10 -9 -9 ------------ Run | Yrd Mat Min Mat Sto Used RIF Installer . | . . . . . Robots Hacked . | . . . . . Non-combat . | . . . . . Combat . | . . . . . Robot Hacks Applied . | . . . . . Relay Couplers Released . | . . . . . Fabnet Peak Effective % . | . . . . . Robots Rewired . | . . . . . Allies Hacked . | . . . . . Hacks Repelled . | . . . . . Allies | -11 -10 -10 -9 -9 -------- Run | Yrd Mat Min Mat Sto Total Allies . | . . . . . Largest Group . | . . . . . Highest-Rated Group . | . . . . . Highest-Rated Ally . | . . . . . Total Orders . | . . . . . Ally Attacks . | . . . . . Total Damage . | . . . . . Kills . | . . . . . Allies Corrupted . | . . . . . Allies Melted . | . . . . . Intel | -11 -10 -10 -9 -9 ------- Run | Yrd Mat Min Mat Sto Active Infowar (turns) 62 | . . . . 62 Optics 62 | . . . . 62 Robot Analysis Total . | . . . . . Derelict Logs Recovered . | . . . . . Drone Launches . | . . . . . Drone Recoveries . | . . . . . Exploration | -11 -10 -10 -9 -9 ------------- Run | Yrd Mat Min Mat Sto Turns Passed 2010 | 122 265 144 330 1149 Spaces Moved 881 | 89 168 117 115 392 Core 42 | 31 . . . 11 Treads . | . . . . . Legs 839 | 58 168 117 115 381 Wheels . | . . . . . Hover . | . . . . . Flight . | . . . . . Fastest Speed 50 | 50 120 120 120 100 Average Speed 159 | 95 120 120 208 187 Slowest Speed 400 | 120 120 120 260 400 Overloaded Moves . | . . . . . Propulsion Burnouts . | . . . . . Robots Hopped . | . . . . . Potential Cave-ins . | . . . . . Cave-ins Triggered . | . . . . . Exploration Rate (%) 19 | 4 22 28 7 36 Regions Visited 4 Branch Regions 2 Pre-discovered Areas . | . . . . . Known Exits Taken . | . . . . . Unknown Exits Taken 4 | 1 1 1 1 . Scrap Searched . | . . . . . Spaces Dug . | . . . . . Terrain Destroyed . | . . . . . Melee . | . . . . . Projectile . | . . . . . AOE . | . . . . . Terrain Rammed . | . . . . . Walls Destroyed . | . . . . . Machines Disabled . | . . . . . Actions | -11 -10 -10 -9 -9 --------- Run | Yrd Mat Min Mat Sto Total 1382 | 126 213 121 206 716 Wait 357 | 22 19 . 74 242 Move 877 | 88 167 116 114 392 Hop . | . . . . . Pick Up 41 | 10 8 2 9 12 Fast Attach . | . . . . . Attach 17 | 6 1 1 4 5 Detach . | . . . . . Swap 4 | . 3 . . 1 Drop 15 | . 3 2 4 6 Fire . | . . . . . Melee 71 | . 12 . 1 58 Ram . | . . . . . Kick . | . . . . . Crush . | . . . . . Escape Stasis . | . . . . . Rewire . | . . . . . Trap . | . . . . . Miscellaneous . | . . . . . Route ------- -11/Scrapyard -10/Materials -10/Mines -9/Materials -9/Storage History --------- Turn | Location | Event 6 | -11/Scrapyard | Discovered new exit (range 15) 123 | -11/Scrapyard | Entered Materials 317 | -10/Materials | Discovered new exit (range 12) 321 | -10/Materials | Build established: Mutant 388 | -10/Materials | Entered Mines 455 | -10/Mines | Received a Rocket Launcher from a helpful Derelict 480 | -10/Mines | Discovered new exit (range 11) 501 | -10/Mines | Found the Drone Emporium 514 | -10/Mines | Found Prototype Device 532 | -10/Mines | Entered Materials 532 | -9/Materials | Evolved 2 slots: Utility x1, Weapon x1 534 | -9/Materials | Identified Bomb Drone Bay 586 | -9/Materials | Repaired Aluminum Leg 612 | -9/Materials | Repaired Aluminum Leg 638 | -9/Materials | Repaired Grenade Launcher 839 | -9/Materials | Discovered new exit (range 5) 862 | -9/Materials | Entered Storage 1948 | -9/Storage | Core integrity fell below 50% 1964 | -9/Storage | Garrison activated, responded to threat 1975 | -9/Storage | Lost 6 parts (1p2n2u1w) 1999 | -9/Storage | Core integrity fell below 20% 2011 | -9/Storage | Destroyed by Y-45 Defender with Heavy Assault Rifle Last Messages --------------- 02003_ Acquired Lgt. Armor Plating. 02003_ K-01 Serf collects debris. 02004_ System corrupted: Heat flow error (+264). 02004_ R-06 Scavenger collects Aluminum Leg. 02006_ K-01 Serf cleans the Terminal. 02007_ Flail follow-up attack on Y-45 Defender. 02007_ Y-45 Defender suffers critical hit (Smash). 02007_ Destroyed Hvy. Assault Rifle. 02007_ Y-45 Defender system corrupted by crushing effect. 02008_ Y-45 Defender system terminally corrupted. 02008_ Beam Rifle fried. 02008_ K-01 Serf collects debris. 02008_ R-06 Scavenger collects Heat Sink. 02008_ Flail destroyed. 02009_ K-01 Serf collects debris. 02011_ K-01 Serf cleans the Transfer Shaft. 02011_ K-01 Serf destroyed. Map ----- +----------------------------------------------------+ | ?????????????????????# """ "?????????????????????? | | ?????????????????????? % ??????????????????????? | | ???????????????????#####/######??????????????????? | | ???????????????????# % #??????????????????? | | ???????????????????# % #################### | | ???????????????????# [ | | ???????????????????# ######################## | | ???????????????????# #??????????????????????# | | ???????????????????# #??????????????????????#### | | ???????????????????# #?????????????????????????? | | ???????????????????# #?????????????????????????? | | ???????####+######## #?????????????????????????? | | ?????? #?????????????????????????? | | ??????????# #?????????????????????????? | | ??????????# #?????????????????????????? | | ??????????+ % #?????????????????????????? | | ??????????# #########+#####??????????????????????? | | ?????????????????# #??????????????????????? | | ?????????????????# k""" #??????????????????????? | | ?????????????????# % """ #??????????????????????? | | ???????????+######% """ ##?????????????????????? | | ??????????? %+%r% Y "#?????????????????????? | | ?????????????????#% """Y T#?????????????????????? | | ?????????????????#% ="""%!"#?????????????????????? | | ?????????????????#%=%"""Yk##?????????????????????? | | ?????????????????# = !%k@#??????????????????????? | | ?????????????????######=###??????????????????????? | | ??????????????????????###????????????????????????? | | ?????????????????????????????????????????????????? | | ?????????????????????????????????????????????????? | | ?????????????????????????????????????????????????? | | ?????????????????????????????????????????????????? | | ?????????????????????????????????????????????????? | | ?????????????????????????????????????????????????? | | ?????????????????????????????????????????????????? | | ?????????????????????????????????????????????????? | | ?????????????????????????????????????????????????? | | ?????????????????????????????????????????????????? | | ?????????????????????????????????????????????????? | | ?????????????????????????????????????????????????? | | ?????????????????????????????????????????????????? | | ?????????????????????????????????????????????????? | | ?????????????????????????????????????????????????? | | | | | | | | | | | | | | | +----------------------------------------------------+ Best States ------------- Heat Dissipation 28 Energy Generation 14 Energy Capacity 280 Matter Stores 300 Matter Capacity 300 Sight Range 20 Terrain Scan Density 10 Armor Coverage 150 Propulsion Shielding 33 Evasion (%) 55 Item Schematics ----------------- None Robot Schematics ------------------ None Fabricated ------------ Nothing Repaired ---------- Aluminum Leg | 38% | -9/Materials Aluminum Leg | 50% | -9/Materials Grenade Launcher | 46% | -9/Materials Studied --------- None Alien Tech Used ----------------- None Achievements -------------- DATA ERROR: Steam Global Achievement% One Hack Too Far Overwhelming Part-time Mechanic Power Corrupts Risk Taker Spot Them First Troublemaker Challenges ------------ None Game ------ Seed MiniMultitargetingInsulator Manual? 0 Play Time 00:34:34 Cumulative 1.1 hours Start 2026.09.21 @ 15:52:31 End 2026.09.21 @ 17:39:27 Sessions 3 Manual Loads 0 Difficulty Rogue Special Mode None Game No. 2 Rogue 2 Adventurer 0 Explorer 0 Win Type - Total 0 Types 0/0/0/0/0/0/0/0/0/0 Lore% 0 Gallery% 1 Achievement% 3 Wizard Run 0 Options --------- Layout 1 ASCII 0 Keyboard 1 Movement Arrows Keybinds 0 Fullscreen 1 Font 24/Smallcaps Map View 25x17 Zoom Use 97% Tactical HUD 1 Map Filters NONE Filters NONE Steam 1 RUN: 51dd77d8-3923-499d-ad4d-9e66acdde8ff